bitfinex/quotes_ETHUSD_20260131
["timestamp","ask_amount","ask_price","bid_price","bid_amount"]
[1769866019357,13.34744604,2634.5,2633.1,0.796]
[1769866020065,13.34744604,2634.3,2632.8,12.64637747]
[1769866020238,14.14344604,2634.3,2632.8,12.64637747]
[1769866020761,14.14344604,2634.3,2632.8,0.0011]
[1769866021369,15.09247119,2634.3,2632.8,0.0011]
[1769866021663,13.34744604,2634.1,2632.8,0.0011]
[1769866021869,13.34744604,2633.9,2632.8,0.0011]
[1769866029374,13.34744604,2633.9,2633.0,0.0011]
[1769866029873,13.1291973,2633.7,2633.0,0.0011]
[1769866030479,0.001,2633.7,2633.0,0.0011]
[1769866030686,0.001,2633.7,2633.0,12.82628022]
[1769866030977,0.001,2633.7,2633.1,14.10780824]
[1769866031184,0.001,2633.7,2633.0,0.0011]
[1769866031185,13.1291973,2633.7,2633.0,0.0011]
[1769866035097,13.9251973,2633.7,2632.8,0.0011]
[1769866035687,18.38749989,2633.4,2632.8,0.0011]
[1769866035885,18.38749989,2633.4,2632.5,0.0011]
[1769866035886,13.1281973,2633.0,2632.5,0.0011]
[1769866036089,13.1281973,2632.8,2632.3,6.56985882]
[1769866036793,13.1281973,2632.7,2632.1,0.0011]
[1769866038370,0.796,2632.6,2632.1,0.0011]
[1769866038591,13.9241973,2632.6,2632.1,0.0011]
[1769866038794,1.39241973,2632.5,2632.1,0.0011]
[1769866041204,1.39241973,2632.5,2632.3,0.0011]
[1769866042704,1.39241973,2632.5,2632.1,0.0011]
[1769866047014,13.1281973,2632.4,2631.7,0.0011]
[1769866047311,14.659859,2632.4,2631.7,0.0011]
[1769866049502,13.1281973,2632.3,2631.7,0.0011]
[1769866049694,13.9241973,2632.2,2631.7,0.0011]
[1769866050292,13.9241973,2632.2,2631.4,0.0011]
[1769866050495,13.1281973,2632.0,2631.4,0.0011]
[1769866053501,13.1281973,2632.0,2631.0,12.82628022]
[1769866053917,13.1281973,2632.0,2631.9,0.0011]
[1769866054229,13.1281973,2631.9,2631.0,0.0011]
[1769866054429,13.1281973,2631.7,2631.6,0.0011]
[1769866054745,13.1281973,2631.7,2631.0,0.0011]
[1769866055046,1.39241973,2631.6,2631.0,0.0011]
[1769866055410,14.52061703,2631.6,2631.0,0.0011]
[1769866055834,13.1281973,2631.5,2630.6,0.0011]
[1769866056134,1.39241973,2631.6,2630.6,12.82628022]
[1769866056135,0.796,2631.4,2630.6,12.82628022]
[1769866056905,14.511688,2631.4,2630.6,12.82628022]
[1769866057235,14.511688,2631.4,2630.6,0.0011]
[1769866058134,13.715688,2631.6,2630.6,13.15238398]
[1769866058323,13.715688,2632.2,2630.9,13.15128398]
[1769866058523,0.797,2632.1,2630.9,13.15128398]
[1769866059332,13.715688,2632.5,2631.2,13.15128398]
[1769866059641,13.715688,2632.5,2630.6,0.7981]
[1769866059642,14.513688,2632.3,2630.7,13.15128398]
[1769866059843,13.715688,2632.1,2630.9,13.15128398]
[1769866061024,1.89534261,2632.2,2630.6,0.0011]
[1769866061025,12.6724364,2631.9,2630.6,0.0011]
[1769866061228,0.19801546,2632.0,2630.6,13.78848078]
[1769866061229,14.75648159,2631.8,2630.6,13.78848078]
[1769866061429,13.4694364,2631.8,2630.6,13.78848078]
[1769866061647,0.797,2631.7,2630.6,13.78848078]
[1769866061950,12.6724364,2631.8,2630.6,13.78848078]
[1769866062455,12.6724364,2631.8,2630.6,0.0011]
[1769866062627,1.34694364,2631.7,2630.6,13.78848078]
[1769866062829,0.1024,2632.1,2630.6,13.78848078]
[1769866062830,0.797,2631.9,2630.6,13.78848078]
[1769866063547,13.4694364,2631.9,2630.6,13.78848078]
[1769866064157,12.6724364,2631.9,2630.6,13.78848078]
[1769866064552,13.91341021,2632.2,2630.6,14.73882912]
[1769866064754,15.30485123,2632.2,2630.8,13.78738078]
[1769866065146,12.6724364,2632.1,2630.8,13.78738078]
[1769866065357,12.6724364,2632.1,2630.6,0.0011]
[1769866065532,13.6222572,2632.1,2630.6,0.0011]
[1769866065728,12.6724364,2631.9,2630.6,0.0011]
[1769866065934,12.6724364,2631.5,2630.6,0.0011]
[1769866066127,13.4694364,2631.4,2630.6,0.0011]
[1769866066433,12.6724364,2631.7,2630.8,0.0011]
[1769866066639,13.4694364,2631.7,2630.8,0.0011]
[1769866067529,12.6724364,2631.7,2630.8,0.0011]
[1769866067750,13.4694364,2631.7,2630.8,0.0011]
[1769866067958,0.42031206,2631.9,2630.8,13.78848078]
[1769866068146,0.19912058,2632.0,2630.8,13.78848078]
[1769866068437,13.4694364,2631.9,2630.8,0.0011]
[1769866068661,14.81648004,2631.8,2630.8,0.0011]
[1769866070674,0.001,2632.0,2630.8,13.78848078]
[1769866071665,0.001,2632.0,2630.6,0.0011]
[1769866071666,0.1980956,2630.7,2629.7,13.78738078]
[1769866076675,13.78775081,2630.7,2629.5,0.0011]
[1769866076877,1.37877508,2630.6,2629.5,1.47019019]
[1769866077181,0.1980956,2630.7,2629.7,13.89280189]
[1769866077347,0.00556443,2631.0,2629.7,13.89280189]
[1769866078366,13.59521964,2631.0,2629.7,13.89280189]
[1769866079476,13.59521964,2631.0,2629.9,13.89390189]
[1769866079773,0.001,2630.5,2629.9,15.28329208]
[1769866079990,0.00556443,2631.0,2630.0,13.89280189]
[1769866080178,0.00556443,2631.0,2629.9,1.39049019]
[1769866080385,13.58965521,2630.9,2629.9,1.39049019]
[1769866080679,1.35952196,2630.8,2629.9,1.39049019]
[1769866080877,0.00556443,2631.0,2629.9,15.28329208]
[1769866081576,0.00556443,2631.0,2629.9,16.23389435]
[1769866081777,0.00556443,2631.0,2629.9,15.28329208]
[1769866083047,13.59521964,2631.0,2629.9,15.28329208]
[1769866083270,1.35952196,2630.9,2629.9,15.28329208]
[1769866083867,1.35952196,2630.9,2629.9,1.39049019]
[1769866084068,1.35952196,2630.9,2629.9,0.0011]
[1769866084381,14.94917717,2630.9,2629.9,0.0011]
[1769866085713,13.58965521,2630.8,2629.9,0.0011]
[1769866086501,14.53994228,2630.8,2629.9,0.0011]
[1769866087071,13.22670324,2630.7,2629.9,0.0011]
[1769866087271,13.22670324,2630.3,2629.5,0.0011]
[1769866087473,13.22670324,2630.3,2629.2,0.12165543]
[1769866087703,13.22670324,2630.3,2629.2,0.10184587]
[1769866088271,13.22670324,2630.1,2628.6,0.0011]
[1769866088473,13.22670324,2629.9,2628.6,12.75931323]
[1769866088893,13.22670324,2629.9,2628.6,0.0011]
[1769866089271,13.22670324,2629.9,2628.6,12.75931323]
[1769866089480,0.797,2630.0,2628.6,14.03524455]
[1769866089481,1.40237032,2629.8,2628.6,14.03524455]
[1769866089682,13.22670324,2629.8,2628.6,1.27703132]
[1769866089904,13.22670324,2629.8,2628.6,0.0011]
[1769866091907,13.22670324,2629.8,2628.6,12.75931323]
[1769866092107,13.22770324,2630.1,2628.6,13.71036771]
[1769866092310,13.22770324,2630.1,2628.6,0.0011]
[1769866092607,13.22670324,2629.9,2628.6,12.75931323]
[1769866092806,13.22670324,2629.9,2628.6,13.7103694]
[1769866093008,1.47587954,2630.0,2628.6,12.75931323]
[1769866093399,0.001,2630.1,2628.6,13.71038633]
[1769866093579,0.001,2630.1,2628.7,12.75821323]
[1769866094398,0.001,2630.1,2628.9,12.75821323]
[1769866096415,0.00556443,2631.0,2629.2,12.75821323]
[1769866096588,13.23226767,2631.0,2629.2,12.75821323]
[1769866096787,1.33346677,2630.9,2629.4,12.75821323]
[1769866097012,1.33346677,2630.9,2629.6,12.75821323]
[1769866097226,0.00556443,2631.0,2629.6,12.75821323]
[1769866097715,0.00556443,2631.0,2629.8,12.75821323]
[1769866098117,0.00556443,2631.0,2630.0,12.75821323]
[1769866098419,13.51635692,2631.6,2630.5,12.75821323]
[1769866098420,0.28965368,2631.6,2630.5,12.75821323]
[1769866099603,0.001,2632.0,2630.5,12.75821323]
[1769866100416,0.001,2632.0,2630.7,12.75821323]
[1769866100616,0.001,2632.0,2630.9,12.75821323]
[1769866101117,0.001,2632.0,2631.1,12.75821323]
[1769866101817,0.001,2632.0,2631.3,12.75821323]
[1769866102624,0.001,2632.0,2631.3,13.70829768]
[1769866102815,0.001,2632.0,2631.5,12.75821323]
[1769866103119,0.001,2632.0,2631.4,1.37082977]
[1769866103120,0.001,2632.0,2630.8,12.75821323]
[1769866103325,0.001,2632.0,2630.9,0.797]
[1769866103494,0.001,2631.4,2630.9,0.797]
[1769866105021,0.001,2631.4,2630.9,13.55521323]
[1769866105222,0.001,2631.4,2631.0,1.35552132]
[1769866105399,0.001,2631.4,2630.9,0.797]
[1769866108117,0.001,2632.0,2631.0,12.75821323]
[1769866108312,13.22770324,2632.0,2630.9,0.797]
[1769866108630,0.001,2632.0,2630.9,14.50544788]
[1769866108930,0.001,2632.0,2631.1,12.75821323]
[1769866111436,0.001,2632.0,2631.2,0.797]
[1769866113611,0.001,2632.0,2631.2,13.55521323]
[1769866115718,0.001,2631.8,2631.2,14.50533457]
[1769866118335,0.001,2632.3,2631.3,13.55625057]
[1769866118553,0.001,2632.3,2631.5,13.55625057]
[1769866121356,0.001,2632.3,2631.6,0.797]
[1769866122829,0.001,2632.3,2631.6,13.42487629]
[1769866123353,0.001,2632.3,2631.6,0.797]
[1769866124932,13.87118231,2632.3,2630.9,13.57810358]
[1769866125132,13.87118231,2632.3,2631.0,13.42487629]
[1769866125342,13.87118231,2632.3,2631.0,13.80497177]
[1769866125661,13.87118231,2632.3,2631.0,1.17709548]
[1769866125962,13.87018231,2632.1,2631.0,0.797]
[1769866126451,13.87018231,2632.1,2631.0,14.37507824]
[1769866126755,13.87018231,2632.1,2631.1,13.57804922]
[1769866126963,1.38711823,2632.2,2631.2,12.62897629]
[1769866127147,0.001,2632.1,2631.2,12.62897629]
[1769866127356,0.001,2632.1,2631.3,1.35791492]
[1769866129668,13.82218231,2632.4,2631.3,1.35791492]
[1769866131486,13.82218231,2632.4,2631.3,14.93588914]
[1769866131644,13.87018231,2633.2,2631.5,12.62787629]
[1769866131838,13.87018231,2633.0,2631.7,12.62787629]
[1769866132054,13.87018231,2633.0,2631.8,0.796]
[1769866133362,13.87018231,2633.0,2631.8,13.42387629]
[1769866135174,13.87018231,2633.0,2631.8,0.796]
[1769866135497,14.38602874,2633.0,2631.8,0.796]
[1769866135697,13.87018231,2632.8,2631.8,0.796]
[1769866136203,13.87018231,2632.8,2631.7,0.796]
[1769866136508,13.87018231,2632.8,2631.6,0.796]
[1769866137595,13.87018231,2632.8,2631.6,14.37386286]
[1769866137793,13.87018231,2632.8,2631.6,13.42387629]
[1769866137991,13.87018231,2632.8,2631.7,14.06526428]
[1769866139373,13.87018231,2632.8,2631.7,1.43738799]
[1769866139572,13.87118231,2632.8,2631.6,0.7971]
[1769866141094,13.87118231,2632.8,2631.6,13.42497629]
[1769866141494,0.001,2632.8,2631.8,13.57779649]
[1769866145406,13.87118231,2632.8,2631.6,0.0011]
[1769866145705,13.87018231,2632.6,2631.6,2.06010763]
[1769866147302,13.87018231,2632.6,2631.6,0.7971]
[1769866150004,13.87018231,2632.6,2631.6,0.0011]
[1769866151810,13.87018231,2632.6,2631.8,0.0011]
[1769866152010,0.001,2632.4,2631.8,0.0011]
[1769866153611,13.59931321,2632.4,2631.8,0.0011]
[1769866153792,14.95924453,2632.4,2631.8,0.0011]
[1769866157625,0.001,2632.4,2631.8,0.0011]
[1769866159260,13.59931321,2632.4,2631.8,0.0011]
[1769866162052,0.001,2632.4,2631.8,0.0011]
[1769866170163,0.001,2632.4,2631.8,13.67313602]
[1769866174346,0.001,2632.8,2631.8,0.0011]
[1769866174576,0.001,2632.8,2631.9,13.67203602]
[1769866174736,13.59931321,2632.8,2632.0,1.4623053]
[1769866174937,13.59931321,2632.8,2632.1,0.796]
[1769866175757,13.59931321,2632.8,2632.1,14.46803602]
[1769866175758,0.001,2632.8,2632.1,14.46803602]
[1769866179154,0.001,2632.8,2632.1,15.41784627]
[1769866179354,0.001,2632.8,2632.3,13.490121]
[1769866180073,12.88395211,2632.7,2632.0,0.0011]
[1769866182740,0.001,2632.8,2632.0,0.0011]
[1769866183364,13.31083465,2632.8,2632.0,0.0011]
[1769866184273,0.001,2632.8,2632.0,13.62402877]
[1769866184463,0.001,2632.8,2632.2,13.62292877]
[1769866185370,0.001,2632.8,2632.1,1.36240288]
[1769866185371,13.31083465,2632.8,2632.1,1.36240288]
[1769866185574,13.31083465,2632.8,2632.0,0.0011]
[1769866186674,0.001,2632.8,2632.0,13.62402877]
[1769866188158,0.001,2632.8,2632.3,0.0011]
[1769866188479,0.001,2632.6,2632.3,0.0011]
[1769866200097,0.001,2632.4,2632.3,0.0011]
[1769866202186,0.001,2632.8,2632.3,0.0011]
[1769866204374,0.19836829,2633.6,2632.5,13.62292877]
[1769866204576,13.30983465,2633.6,2632.6,1.96781621]
[1769866204790,13.30983465,2633.6,2632.4,14.41892877]
[1769866205373,13.30983465,2633.3,2632.4,0.796]
[1769866205571,13.30983465,2633.1,2632.4,0.796]
[1769866206171,0.50100247,2633.7,2632.4,1.74569936]
[1769866206172,13.30983465,2633.6,2632.4,1.74569936]
[1769866206376,13.30983465,2633.6,2632.4,15.36862813]
[1769866206821,13.04976938,2633.3,2632.4,0.796]
[1769866209105,13.04976938,2633.3,2632.4,14.54418962]
[1769866210176,13.04976938,2633.3,2632.4,15.49388523]
[1769866210378,13.04976938,2633.5,2632.4,15.49388523]
[1769866212408,13.04976938,2633.5,2632.6,0.0011]
[1769866212605,13.05076938,2633.1,2632.6,1.55059852]
[1769866212913,13.05076938,2633.1,2632.6,0.0011]
[1769866212914,14.06661828,2633.1,2632.6,0.0011]
[1769866213976,13.55077185,2633.1,2632.6,0.0011]
[1769866214379,13.05076938,2633.1,2632.6,0.0011]
[1769866224745,13.05076938,2633.1,2632.8,0.0011]
[1769866225039,0.001,2632.9,2632.8,0.0011]
[1769866228246,13.05076938,2632.9,2632.8,0.0011]
[1769866229316,0.001,2632.9,2632.8,0.0011]
[1769866231112,13.84576938,2633.5,2632.8,0.0011]
[1769866231113,13.04976938,2633.5,2632.8,0.0011]
[1769866231434,13.04976938,2633.5,2632.8,15.12432858]
[1769866231607,13.04976938,2633.5,2632.8,13.74928962]
[1769866235466,13.04976938,2633.5,2632.8,0.0011]
[1769866236829,13.05076938,2633.5,2632.8,0.0011]
[1769866237968,0.001,2633.3,2632.8,0.0011]
[1769866238328,0.002,2633.3,2632.8,0.0011]
[1769866240173,0.001,2633.3,2632.8,12.80095474]
[1769866240353,0.001,2633.2,2632.9,1.28009547]
[1769866240554,0.001,2633.2,2632.8,0.0011]
[1769866244180,12.64968102,2633.3,2632.8,0.0011]
[1769866244384,0.001,2633.2,2632.8,0.0011]
[1769866245289,12.64968102,2633.3,2632.8,0.0011]
[1769866245476,0.001,2633.2,2632.8,0.0011]
[1769866245686,0.001,2633.2,2632.8,1.75611422]
[1769866245860,0.001,2633.3,2632.8,1.75611422]
[1769866246061,0.001,2633.2,2632.8,1.75611422]
[1769866246592,12.64968102,2633.1,2632.8,0.0011]
[1769866246794,12.64868102,2633.1,2632.8,0.0011]
[1769866248091,0.001,2633.2,2632.8,0.0011]
[1769866249812,0.001,2633.2,2633.0,0.0011]
[1769866250094,0.001,2633.1,2633.0,0.0011]
[1769866250398,12.64868102,2633.5,2633.0,0.0011]
[1769866250967,13.91364912,2633.5,2633.0,0.0011]
[1769866252069,0.001,2633.7,2633.0,12.80095474]
[1769866253367,0.001,2633.7,2633.0,13.75041449]
[1769866254094,12.64868102,2633.6,2632.6,0.0011]
[1769866254297,12.64868102,2633.3,2632.6,0.0011]
[1769866254471,12.64868102,2633.1,2632.6,0.0011]
[1769866262981,12.64868102,2633.1,2632.8,0.0011]
[1769866265219,12.64868102,2633.3,2632.8,0.0011]
[1769866273508,12.67444118,2633.5,2632.8,0.0011]
[1769866273716,0.001,2633.5,2632.8,10.31296153]
[1769866274028,0.001,2633.5,2632.9,11.34315768]
[1769866274332,0.001,2633.7,2633.0,10.31086153]
[1769866275027,0.001,2633.1,2633.0,10.31086153]
[1769866275209,0.001,2633.7,2633.0,11.92504254]
[1769866280044,0.001,2633.7,2633.0,12.87452801]
[1769866280243,0.001,2633.7,2633.1,10.04405419]
[1769866280425,0.001,2633.7,2633.2,0.796]
[1769866281211,0.001,2633.7,2633.1,10.04405419]
[1769866281410,12.67444118,2633.7,2633.2,1.96640334]
[1769866281611,0.001,2633.7,2633.2,0.796]
[1769866282203,0.001,2633.7,2633.2,10.75501657]
[1769866283442,0.38477703,2634.2,2633.2,10.75501657]
[1769866283443,0.38477703,2634.2,2633.3,9.87600917]
[1769866283645,12.67344118,2634.1,2633.3,1.17044653]
[1769866283811,12.67344118,2634.1,2633.4,0.796]
[1769866286922,0.001,2633.5,2633.4,0.796]
[1769866287727,13.05821821,2634.2,2633.4,0.796]
[1769866290116,13.05821821,2634.2,2633.0,9.63790001]
[1769866290446,13.05821821,2634.2,2633.5,0.796]
[1769866290646,12.67344118,2634.0,2633.5,0.796]
[1769866292132,12.67344118,2634.0,2633.6,0.796]
[1769866292647,12.67344118,2634.0,2633.7,0.796]
[1769866294929,1.30582182,2634.1,2633.7,0.796]
[1769866295135,12.67344118,2634.2,2633.8,0.796]
[1769866296522,12.67344118,2634.7,2633.8,0.796]
[1769866296723,12.67344118,2634.5,2633.9,0.796]
[1769866298055,11.99467373,2634.1,2632.8,0.0011]
[1769866298268,11.99467373,2634.1,2632.9,0.796]
[1769866298464,5.25489773,2634.2,2632.8,0.0011]
[1769866298465,11.99467373,2633.9,2632.8,0.0011]
[1769866298755,11.99467373,2633.5,2632.9,0.796]
[1769866300837,12.4063203,2633.2,2632.5,0.0011]
[1769866301038,3.934068,2633.4,2631.8,0.0011]
[1769866301039,12.4063203,2632.9,2631.8,0.0011]
[1769866301248,12.4063203,2632.9,2632.1,0.796]
[1769866302548,12.4063203,2632.9,2632.2,0.796]
[1769866302725,12.4063203,2632.9,2631.8,0.0011]
[1769866302926,12.4063203,2632.3,2631.7,0.0011]
[1769866303255,12.4063203,2632.1,2631.8,0.796]
[1769866303457,12.4063203,2632.1,2631.7,0.0011]
[1769866303755,12.4063203,2632.0,2631.5,0.796]
[1769866303925,5.25489773,2632.1,2631.4,0.7971]
[1769866303926,12.4063203,2631.8,2631.4,0.7971]
[1769866304128,12.4063203,2631.8,2631.4,0.0011]
[1769866304651,12.4063203,2631.8,2631.3,0.7971]
[1769866305069,12.4063203,2631.8,2631.3,0.0011]
[1769866305546,12.4063203,2631.7,2631.3,0.0011]
[1769866305731,12.4063203,2631.5,2630.7,0.7971]
[1769866306133,12.8995433,2632.0,2630.9,12.24813418]
[1769866306944,12.8995433,2632.0,2630.7,0.7971]
[1769866308365,12.8995433,2632.0,2630.7,0.0011]
[1769866308671,12.4063203,2631.8,2630.8,0.796]
[1769866310089,12.4063203,2631.7,2630.8,0.796]
[1769866310254,12.4063203,2631.7,2630.7,0.0011]
[1769866310454,12.4063203,2631.7,2631.0,0.0011]
[1769866310700,12.4063203,2631.4,2630.7,0.0011]
[1769866310999,12.4063203,2631.2,2630.8,0.0011]
[1769866311451,12.4063203,2631.2,2630.5,0.0011]
[1769866311657,12.4063203,2631.2,2629.7,0.0011]
[1769866311866,12.4063203,2631.2,2629.8,0.796]
[1769866312280,12.4063203,2631.2,2629.9,12.59661903]
[1769866312493,12.4063203,2631.5,2630.1,12.59661903]
[1769866313472,12.4063203,2631.5,2630.1,12.44661903]
[1769866314787,12.4063203,2631.3,2630.0,1.3392619]
[1769866314988,12.4063203,2631.1,2630.0,1.3392619]
[1769866315191,12.4063203,2630.9,2630.0,1.3392619]
[1769866315892,12.4063203,2630.9,2630.1,0.797]
[1769866317064,0.32693353,2631.0,2630.1,0.797]
[1769866317395,0.32693353,2631.0,2630.1,14.34414706]
[1769866318486,0.32693353,2631.0,2630.1,13.39361903]
[1769866318792,0.32693353,2631.0,2630.3,12.59661903]
[1769866319583,8.1654441,2631.9,2630.3,12.59661903]
[1769866319584,12.76888348,2631.6,2630.3,12.35032623]
[1769866319893,0.3445848,2631.5,2630.3,12.35032623]
[1769866320795,0.3445848,2631.5,2630.4,12.33867771]
[1769866320969,0.3445848,2631.5,2630.3,6.20534889]
[1769866320970,0.3445848,2631.5,2630.7,12.33867771]
[1769866322793,0.3445848,2631.5,2630.7,13.28898144]
[1769866323092,0.001,2631.3,2630.7,13.28898144]
[1769866323290,0.001,2631.3,2630.7,12.33867771]
[1769866323494,0.001,2631.3,2630.4,27.63493192]
[1769866323697,0.001,2631.3,2630.5,2.85864758]
[1769866323871,0.001,2631.3,2630.4,13.13493192]
[1769866324295,12.4073203,2631.3,2630.4,0.82991818]
[1769866324476,12.4073203,2631.3,2630.5,0.797]
[1769866326105,0.001,2631.3,2630.5,8.8941552]
[1769866326307,0.001,2631.3,2630.5,9.8445333]
[1769866326604,0.001,2631.3,2630.7,8.10243019]
[1769866326894,0.001,2631.3,2630.6,0.98445333]
[1769866330405,0.001,2631.3,2630.6,9.11154137]
[1769866330588,0.001,2631.3,2630.6,9.07743834]
[1769866331312,0.001,2631.3,2630.6,8.12708804]
[1769866331698,0.001,2631.3,2630.6,9.07743655]
[1769866335215,0.001,2631.1,2630.6,9.07743655]
[1769866335405,0.001,2631.3,2630.8,8.1502197]
[1769866337712,0.001,2631.3,2630.7,9.5266207]
[1769866337915,0.001,2631.3,2630.9,0.797]
[1769866339125,12.37292392,2631.3,2630.0,0.0011]
[1769866339417,12.37192392,2631.1,2630.0,0.0011]
[1769866339717,12.37192392,2630.5,2628.6,8.17015239]
[1769866339904,12.37192392,2630.3,2628.9,0.797]
[1769866341299,12.37192392,2630.1,2628.5,0.797]
[1769866341712,12.37192392,2629.9,2628.5,0.797]
[1769866343630,13.32253667,2629.9,2628.5,0.797]
[1769866343828,12.37192392,2629.9,2628.5,0.797]
[1769866344190,12.37192392,2629.7,2628.5,0.797]
[1769866344412,12.37192392,2629.5,2628.5,0.797]
[1769866345731,12.37192392,2628.4,2626.0,54.24332138]
[1769866345937,12.37192392,2627.3,2626.0,54.24332138]
[1769866346085,3.67832442,2627.2,2626.0,36.84782288]
[1769866346284,2.61095715,2627.1,2626.1,12.67817578]
[1769866346546,0.0664839,2628.5,2626.7,12.67817578]
[1769866346547,0.31147071,2628.0,2626.7,12.67817578]
[1769866346690,0.31147071,2628.0,2626.8,0.797]
[1769866347193,0.31147071,2628.0,2626.8,13.47517578]
[1769866347394,0.31147071,2628.0,2626.9,1.34751758]
[1769866347593,0.31147071,2628.0,2626.8,0.797]
[1769866348206,0.1024,2627.9,2626.2,16.45176069]
[1769866348418,0.31147071,2628.0,2626.5,13.62999894]
[1769866348697,0.31147071,2628.0,2626.6,14.04117567]
[1769866349001,0.31147071,2628.0,2626.6,13.73312311]
[1769866349237,0.31147071,2628.0,2626.8,12.67817578]
[1769866349436,12.37192392,2627.8,2626.6,1.05494733]
[1769866349715,13.61935631,2627.7,2626.2,3.77358491]
[1769866349891,1.24743239,2627.7,2626.2,16.45176069]
[1769866350088,0.1024,2627.9,2626.2,16.45176069]
[1769866350289,0.31147071,2628.0,2626.3,12.67817578]
[1769866350913,12.68339463,2628.0,2626.3,12.67817578]
[1769866351433,0.31147071,2628.0,2626.3,12.67817578]
[1769866351613,0.31147071,2628.0,2626.5,12.67817578]
[1769866351933,0.31147071,2628.0,2626.7,12.67817578]
[1769866352229,0.31147071,2628.0,2626.6,0.9518008]
[1769866352230,0.1024,2627.6,2626.3,0.85333883]
[1769866352434,12.37192392,2627.5,2626.0,36.84782288]
[1769866353040,0.1024,2627.6,2626.1,13.63012667]
[1769866353204,12.37192392,2627.9,2626.1,12.67817578]
[1769866353536,0.31147071,2628.0,2626.0,36.84782288]
[1769866353537,12.37192392,2627.6,2626.3,1.64517607]
[1769866353714,12.47432392,2627.3,2626.0,36.84782288]
[1769866353910,3.14753075,2627.1,2626.0,24.35929029]
[1769866354319,7.40448582,2627.0,2626.0,24.18212304]
[1769866354518,0.51231386,2627.0,2626.0,21.61318263]
[1769866354799,0.1024,2627.0,2626.0,21.61318263]
[1769866355219,0.95162045,2627.1,2626.0,21.61318263]
[1769866355220,0.1024,2626.8,2626.0,21.61318263]
[1769866356216,7.6299,2626.7,2626.0,21.56318263]
[1769866356432,0.1024,2626.6,2625.3,0.25377762]
[1769866356633,0.1024,2627.2,2625.3,0.25377762]
[1769866356811,0.1024,2627.0,2625.3,0.25377762]
[1769866357140,0.1024,2627.0,2625.3,12.51733585]
[1769866357304,0.1024,2627.6,2625.5,13.21573824]
[1769866357504,5.07380495,2627.8,2625.9,13.21558768]
[1769866357505,1.26833946,2627.8,2625.9,13.21558768]
[1769866357740,1.26276453,2628.0,2626.1,12.26355823]
[1769866357910,0.1024,2627.9,2626.1,12.26355823]
[1769866358117,0.31147071,2628.0,2626.1,13.21553735]
[1769866358313,0.31147071,2628.0,2625.4,0.2335703]
[1769866358314,0.2335703,2627.8,2625.2,12.26355823]
[1769866358512,0.1024,2627.3,2624.7,12.26355823]
[1769866358712,0.1024,2627.3,2624.5,0.798]
[1769866358713,0.2335703,2627.1,2624.5,0.798]
[1769866358938,0.3359703,2626.9,2624.6,0.798]
[1769866359142,0.1024,2626.7,2624.6,0.798]
[1769866359343,0.1024,2626.5,2626.2,0.0011]
[1769866359511,0.1024,2626.5,2626.0,0.0011]
[1769866359841,0.1024,2626.1,2624.9,0.0011]
[1769866360042,0.1024,2625.8,2624.9,0.0011]
[1769866360206,0.1024,2625.8,2622.7,0.0182922]
[1769866360207,0.1024,2625.6,2623.4,12.38521366]
[1769866360409,0.1024,2625.6,2623.4,14.42173503]
[1769866360410,0.1024,2625.4,2623.4,14.42173503]
[1769866360634,0.798,2625.8,2623.5,13.06155823]
[1769866360635,0.1024,2625.2,2623.5,13.06155823]
[1769866360843,0.1024,2625.0,2623.5,13.06155823]
[1769866361042,0.1024,2625.0,2623.5,12.26355823]
[1769866361229,9.466696,2624.9,2623.4,1.3601768]
[1769866361545,0.9569096,2624.8,2623.4,12.38521366]
[1769866361718,0.1024,2625.1,2623.5,0.798]
[1769866361920,0.1024,2624.9,2623.4,12.38521366]
[1769866362126,0.95238095,2625.0,2623.4,12.38521366]
[1769866362127,0.1024,2624.7,2623.4,0.06021412]
[1769866362427,0.1024,2624.5,2622.7,0.0182922]
[1769866362622,37.00600178,2624.6,2622.0,12.17330433]
[1769866362623,0.1024,2624.3,2622.0,12.17330433]
[1769866362809,3.11264,2624.3,2622.4,12.17330433]
[1769866363010,0.1024,2624.1,2622.4,12.97130433]
[1769866363210,0.1024,2623.9,2622.4,12.17330433]
[1769866363410,0.1024,2623.7,2622.1,1.21733043]
[1769866363649,0.3536005,2623.7,2621.9,12.17330433]
[1769866363849,0.1024,2623.5,2621.9,12.17330433]
[1769866364166,0.2335703,2624.5,2621.9,12.17330433]
[1769866364167,0.1024,2624.4,2621.9,12.17330433]
[1769866364326,0.1024,2624.0,2621.9,12.17330433]
[1769866364642,0.1024,2623.8,2621.9,12.17330433]
[1769866364847,0.1024,2623.6,2621.9,12.17330433]
[1769866365034,0.1024,2623.4,2621.9,12.12330433]
[1769866365344,9.98444352,2624.1,2621.4,10.67790099]
[1769866365569,8.62885502,2623.9,2621.6,10.67790099]
[1769866365853,8.62885502,2623.9,2621.5,0.798]
[1769866365854,0.1024,2623.7,2621.8,10.67790099]
[1769866366036,1.05532548,2623.5,2621.8,11.47590099]
[1769866366246,1.05532548,2623.5,2620.7,0.95392246]
[1769866366247,0.1024,2622.7,2620.7,10.67790099]
[1769866366551,0.1024,2622.5,2620.7,10.67790099]
[1769866366773,8.49527563,2623.1,2620.7,10.67790099]
[1769866366927,5.06340456,2623.0,2620.8,11.74569109]
[1769866367114,0.1024,2622.8,2620.8,11.74569109]
[1769866367317,0.1024,2622.6,2620.8,11.74569109]
[1769866367540,0.1024,2622.6,2620.9,1.17456911]
[1769866367541,0.1024,2622.4,2620.9,1.17456911]
[1769866367750,0.1024,2622.2,2620.9,1.12456911]
[1769866367916,0.95350699,2621.9,2620.3,10.67790099]
[1769866368231,0.1024,2622.5,2620.3,10.67790099]
[1769866368434,0.1024,2622.5,2620.0,0.799]
[1769866368435,0.1024,2622.5,2620.5,10.67790099]
[1769866368943,0.1024,2622.5,2620.7,10.67790099]
[1769866369147,0.95322308,2622.7,2620.7,10.67790099]
[1769866369442,0.1024,2622.6,2620.7,10.67790099]
[1769866369650,0.58923451,2622.6,2620.9,10.67790099]
[1769866369849,0.1024,2622.6,2620.9,10.67790099]
[1769866370246,1.05565407,2622.6,2620.9,10.67790099]
[1769866370416,7.84880681,2623.7,2620.9,10.67790099]
[1769866370417,0.1024,2622.7,2620.9,10.67790099]
[1769866370818,0.1024,2623.2,2621.1,10.67790099]